[Event "*** Titled Tuesday Blitz"]
[Site "Chess.com"]
[Date "2020.04.28"]
[Round "7"]
[White "EvgenyRomanov"]
[Black "Khamrakulov_Djurabek"]
[Result "0-1"]
[WhiteElo "2652"]
[BlackElo "2819"]
[TimeControl "180+1"]
[EndTime "11:19:15 PDT"]
[Termination "Khamrakulov_Djurabek won by resignation"]

1. c4 {[%clk 0:03:00.9]} 1... e5 {[%clk 0:02:59.2]} 2. d3 {[%clk 0:03:01]} 2...
Nf6 {[%clk 0:02:59]} 3. a3 {[%clk 0:03:00]} 3... c6 {[%clk 0:02:59.1]} 4. Nf3
{[%clk 0:02:59.1]} 4... Be7 {[%clk 0:02:56.8]} 5. b4 {[%clk 0:02:54.4]} 5... a5
{[%clk 0:02:40.8]} 6. b5 {[%clk 0:02:52.3]} 6... cxb5 {[%clk 0:02:40.7]} 7. cxb5
{[%clk 0:02:50.7]} 7... d6 {[%clk 0:02:38.6]} 8. g3 {[%clk 0:02:46.4]} 8... O-O
{[%clk 0:02:37.3]} 9. Bg2 {[%clk 0:02:46.3]} 9... a4 {[%clk 0:02:30.2]} 10. O-O
{[%clk 0:02:45.8]} 10... Qa5 {[%clk 0:02:28.5]} 11. Bd2 {[%clk 0:02:43.7]} 11...
Qxb5 {[%clk 0:02:28.2]} 12. Nc3 {[%clk 0:02:41]} 12... Qa6 {[%clk 0:02:28.1]}
13. Rb1 {[%clk 0:02:28.5]} 13... Be6 {[%clk 0:02:28.1]} 14. Nb5 {[%clk 0:02:10]}
14... Rc8 {[%clk 0:02:11.3]} 15. Ng5 {[%clk 0:01:55.3]} 15... Bb3 {[%clk
0:01:43.5]} 16. Rxb3 {[%clk 0:01:54.3]} 16... axb3 {[%clk 0:01:44.2]} 17. Qxb3
{[%clk 0:01:54.4]} 17... d5 {[%clk 0:01:44.7]} 18. Bxd5 {[%clk 0:01:37.1]} 18...
Nxd5 {[%clk 0:01:43.7]} 19. Qxd5 {[%clk 0:01:37.8]} 19... Bxg5 {[%clk
0:01:43.4]} 20. Bxg5 {[%clk 0:01:38.7]} 20... Qc6 {[%clk 0:01:31.2]} 21. Rc1
{[%clk 0:01:22.5]} 21... Qd7 {[%clk 0:00:59]} 22. Rxc8+ {[%clk 0:01:15.2]} 22...
Qxc8 {[%clk 0:00:58.7]} 23. Nd6 {[%clk 0:00:59.4]} 23... Qd7 {[%clk 0:00:58.2]}
24. Qxe5 {[%clk 0:00:58.1]} 24... Nc6 {[%clk 0:00:57.5]} 25. Qc5 {[%clk
0:00:58.2]} 25... Ra5 {[%clk 0:00:55]} 26. Nb5 {[%clk 0:00:44.4]} 26... Nd4
{[%clk 0:00:37.7]} 27. Qxd4 {[%clk 0:00:31.6]} 27... Qxd4 {[%clk 0:00:37]} 28.
Nxd4 {[%clk 0:00:32.5]} 28... Rxg5 {[%clk 0:00:36.9]} 29. f4 {[%clk 0:00:20.5]}
29... Ra5 {[%clk 0:00:34.8]} 30. Nc2 {[%clk 0:00:20.6]} 30... Rc5 {[%clk
0:00:35.1]} 31. Nd4 {[%clk 0:00:19.6]} 31... Rc3 {[%clk 0:00:30.5]} 32. Nb5
{[%clk 0:00:19.5]} 32... Rb3 {[%clk 0:00:29]} 33. Nd6 {[%clk 0:00:19.5]} 33...
Kf8 {[%clk 0:00:28.4]} 34. a4 {[%clk 0:00:19.7]} 34... Ke7 {[%clk 0:00:27.8]}
35. Nc4 {[%clk 0:00:19.9]} 35... b6 {[%clk 0:00:24.3]} 36. Kf2 {[%clk 0:00:19]}
36... Kd7 {[%clk 0:00:24.5]} 37. Ke3 {[%clk 0:00:19]} 37... f6 {[%clk
0:00:24.8]} 38. Kd4 {[%clk 0:00:18.8]} 38... Kc6 {[%clk 0:00:24.2]} 39. e4
{[%clk 0:00:18.3]} 39... Rb4 {[%clk 0:00:23.8]} 40. e5 {[%clk 0:00:18.6]} 40...
Rxa4 {[%clk 0:00:20.5]} 41. Kc3 {[%clk 0:00:17.2]} 41... b5 {[%clk 0:00:20.4]}
42. Nd6 {[%clk 0:00:17.1]} 42... Kd5 {[%clk 0:00:13.8]} 43. Nxb5 {[%clk
0:00:16.6]} 43... fxe5 {[%clk 0:00:13.9]} 44. Nc7+ {[%clk 0:00:12.8]} 44... Kc6
{[%clk 0:00:12]} 45. Ne6 {[%clk 0:00:12.7]} 45... g6 {[%clk 0:00:11.1]} 46. fxe5
{[%clk 0:00:12.3]} 46... Kd5 {[%clk 0:00:11.1]} 47. Ng5 {[%clk 0:00:11.5]} 47...
Kxe5 {[%clk 0:00:09]} 48. Nxh7 {[%clk 0:00:11.2]} 48... Kf5 {[%clk 0:00:09.5]}
49. d4 {[%clk 0:00:10.1]} 49... Ra7 {[%clk 0:00:09.3]} 50. Nf8 {[%clk
0:00:10.2]} 50... Rf7 {[%clk 0:00:09.2]} 51. Nxg6 {[%clk 0:00:10]} 51... Kxg6
{[%clk 0:00:09.4]} 52. d5 {[%clk 0:00:10.4]} 52... Kf6 {[%clk 0:00:09.7]} 53.
Kd4 {[%clk 0:00:11.3]} 53... Ra7 {[%clk 0:00:08.6]} 54. h4 {[%clk 0:00:09.8]}
54... Ra3 {[%clk 0:00:08.1]} 55. g4 {[%clk 0:00:08.9]} 55... Ra4+ {[%clk
0:00:08.4]} 56. Kc5 {[%clk 0:00:09.6]} 56... Rxg4 {[%clk 0:00:08.7]} 57. Kc6
{[%clk 0:00:09.8]} 57... Ke7 {[%clk 0:00:08.6]} 58. d6+ {[%clk 0:00:09.5]} 58...
Kd8 {[%clk 0:00:08.8]} 59. h5 {[%clk 0:00:10.4]} 59... Rh4 {[%clk 0:00:09.2]}
0-1

[Event "*** Titled Tuesday Blitz"]
[Site "Chess.com"]
[Date "2020.04.28"]
[Round "7"]
[White "Bubi6"]
[Black "Superfelix"]
[Result "1-0"]
[WhiteElo "2649"]
[BlackElo "2479"]
[TimeControl "180+1"]
[EndTime "11:19:15 PDT"]
[Termination "Bubi6 won by resignation"]

1. e4 {[%clk 0:03:00.9]} 1... c6 {[%clk 0:02:59.4]} 2. d4 {[%clk 0:02:59.8]}
2... g6 {[%clk 0:02:59.9]} 3. Nc3 {[%clk 0:03:00.7]} 3... d5 {[%clk 0:03:00.3]}
4. Nf3 {[%clk 0:03:00.9]} 4... dxe4 {[%clk 0:03:00.4]} 5. Nxe4 {[%clk
0:02:59.7]} 5... Nf6 {[%clk 0:03:01]} 6. Nxf6+ {[%clk 0:02:58.8]} 6... exf6
{[%clk 0:03:01.9]} 7. Bc4 {[%clk 0:02:58.4]} 7... Bg7 {[%clk 0:03:02.3]} 8. O-O
{[%clk 0:02:58.4]} 8... O-O {[%clk 0:03:01.4]} 9. c3 {[%clk 0:02:58.9]} 9... a5
{[%clk 0:03:01.9]} 10. Bf4 {[%clk 0:02:58.1]} 10... Na6 {[%clk 0:03:02.3]} 11.
Qd2 {[%clk 0:02:55.2]} 11... Nc7 {[%clk 0:03:02.7]} 12. Rfe1 {[%clk 0:02:54.4]}
12... Nd5 {[%clk 0:03:03.1]} 13. Bg3 {[%clk 0:02:51.8]} 13... Be6 {[%clk
0:03:03]} 14. a3 {[%clk 0:02:42.6]} 14... Qd7 {[%clk 0:03:00.7]} 15. Ba2 {[%clk
0:02:41.6]} 15... b5 {[%clk 0:02:50.8]} 16. h3 {[%clk 0:02:41]} 16... a4 {[%clk
0:02:50.2]} 17. Rac1 {[%clk 0:02:36.9]} 17... Rfe8 {[%clk 0:02:46.2]} 18. c4
{[%clk 0:02:22.5]} 18... bxc4 {[%clk 0:02:45.7]} 19. Bxc4 {[%clk 0:02:23]} 19...
h5 {[%clk 0:02:38.8]} 20. Qc2 {[%clk 0:02:21.6]} 20... Bf5 {[%clk 0:02:33.2]}
21. Bd3 {[%clk 0:02:19]} 21... Bxd3 {[%clk 0:02:29.6]} 22. Qxd3 {[%clk
0:02:19.2]} 22... Bh6 {[%clk 0:02:20.2]} 23. Rxe8+ {[%clk 0:02:09.8]} 23... Rxe8
{[%clk 0:02:21.1]} 24. Re1 {[%clk 0:02:09.5]} 24... Rxe1+ {[%clk 0:02:20.2]} 25.
Nxe1 {[%clk 0:02:10.4]} 25... Qb7 {[%clk 0:02:19.3]} 26. Qc2 {[%clk 0:01:52.8]}
26... Qb5 {[%clk 0:02:13.7]} 27. Nd3 {[%clk 0:01:47.6]} 27... Qb3 {[%clk
0:01:54.6]} 28. Qxb3 {[%clk 0:01:33.6]} 28... axb3 {[%clk 0:01:55.5]} 29. a4
{[%clk 0:01:23]} 29... Bd2 {[%clk 0:01:53.2]} 30. Bd6 {[%clk 0:01:16.7]} 30...
Kg7 {[%clk 0:01:21.9]} 31. Kf1 {[%clk 0:01:16.3]} 31... Ba5 {[%clk 0:01:21.5]}
32. Ke2 {[%clk 0:00:53.5]} 32... f5 {[%clk 0:01:15.8]} 33. Kd1 {[%clk
0:00:53.4]} 33... Kf6 {[%clk 0:01:12.7]} 34. Nc5 {[%clk 0:00:53.9]} 34... Bb4
{[%clk 0:00:58.8]} 35. Be5+ {[%clk 0:00:43.4]} 35... Ke7 {[%clk 0:00:56.5]} 36.
Nxb3 {[%clk 0:00:43.5]} 36... f6 {[%clk 0:00:56.4]} 37. Bb8 {[%clk 0:00:42.7]}
37... h4 {[%clk 0:00:50.8]} 38. Ke2 {[%clk 0:00:39.5]} 38... g5 {[%clk
0:00:42.4]} 39. a5 {[%clk 0:00:38.6]} 39... Kd7 {[%clk 0:00:34.8]} 40. Ba7
{[%clk 0:00:33.6]} 40... Bd6 {[%clk 0:00:28]} 41. Bc5 {[%clk 0:00:32.3]} 41...
Bf4 {[%clk 0:00:22]} 42. a6 {[%clk 0:00:28.3]} 42... Kc8 {[%clk 0:00:21.3]} 43.
Na5 {[%clk 0:00:24.7]} 43... Bb8 {[%clk 0:00:15.7]} 44. a7 {[%clk 0:00:23.6]}
44... Bxa7 {[%clk 0:00:15.5]} 45. Bxa7 {[%clk 0:00:24.1]} 45... Kd7 {[%clk
0:00:16.4]} 46. Bc5 {[%clk 0:00:23.9]} 46... Nf4+ {[%clk 0:00:16.6]} 47. Kf1
{[%clk 0:00:23.1]} 47... Nd3 {[%clk 0:00:17]} 48. b4 {[%clk 0:00:21.5]} 48... f4
{[%clk 0:00:17.2]} 49. f3 {[%clk 0:00:19.1]} 49... f5 {[%clk 0:00:17.3]} 50. Nc4
{[%clk 0:00:18.9]} 50... Ke6 {[%clk 0:00:16.2]} 51. Ne5 {[%clk 0:00:18.8]} 51...
Nb2 {[%clk 0:00:14.9]} 52. Nxc6 {[%clk 0:00:16.8]} 52... Kd5 {[%clk 0:00:15.8]}
53. Ne7+ {[%clk 0:00:15.4]} 53... Kc4 {[%clk 0:00:16.7]} 54. Nxf5 {[%clk
0:00:13.4]} 54... Kd3 {[%clk 0:00:17.6]} 55. Ng7 {[%clk 0:00:13.2]} 55... Nd1
{[%clk 0:00:18.5]} 56. Ne6 {[%clk 0:00:13.2]} 56... Ne3+ {[%clk 0:00:19.4]} 57.
Kg1 {[%clk 0:00:13.7]} 57... g4 {[%clk 0:00:17.7]} 58. Nxf4+ {[%clk 0:00:13.4]}
58... Kc4 {[%clk 0:00:16.6]} 59. hxg4 {[%clk 0:00:13.6]} 59... Nd5 {[%clk
0:00:17]} 60. Nxd5 {[%clk 0:00:12.7]} 1-0

[Event "*** Titled Tuesday Blitz"]
[Site "Chess.com"]
[Date "2020.04.28"]
[Round "7"]
[White "crescentmoon2411"]
[Black "johnathan113"]
[Result "1/2-1/2"]
[WhiteElo "2799"]
[BlackElo "2654"]
[TimeControl "180+1"]
[EndTime "11:19:18 PDT"]
[Termination "Game drawn - insufficient material"]

1. e4 {[%clk 0:03:00.9]} 1... c5 {[%clk 0:03:00]} 2. Nf3 {[%clk 0:03:00.8]} 2...
g6 {[%clk 0:03:00.5]} 3. d4 {[%clk 0:02:56.6]} 3... cxd4 {[%clk 0:03:01.4]} 4.
Qxd4 {[%clk 0:02:56.9]} 4... Nf6 {[%clk 0:03:01.6]} 5. e5 {[%clk 0:02:50]} 5...
Nc6 {[%clk 0:03:01.7]} 6. Qa4 {[%clk 0:02:44.7]} 6... Nd5 {[%clk 0:03:01.7]} 7.
Qe4 {[%clk 0:02:39.3]} 7... Nb6 {[%clk 0:03:01.5]} 8. Bd3 {[%clk 0:02:21]} 8...
Bg7 {[%clk 0:03:01.4]} 9. O-O {[%clk 0:02:17.9]} 9... O-O {[%clk 0:03:01.7]} 10.
Nc3 {[%clk 0:02:05.7]} 10... d5 {[%clk 0:02:57.2]} 11. exd6 {[%clk 0:02:04.3]}
11... Qxd6 {[%clk 0:02:55.9]} 12. Qh4 {[%clk 0:01:59.8]} 12... Qb4 {[%clk
0:02:51.7]} 13. Ne4 {[%clk 0:01:47.1]} 13... h5 {[%clk 0:02:24]} 14. c3 {[%clk
0:01:41.8]} 14... Qa5 {[%clk 0:02:20.6]} 15. h3 {[%clk 0:01:08.6]} 15... Bf5
{[%clk 0:02:16.1]} 16. g4 {[%clk 0:01:04]} 16... Qd5 {[%clk 0:02:00.1]} 17. gxf5
{[%clk 0:01:04]} 17... Qxd3 {[%clk 0:02:00.1]} 18. Be3 {[%clk 0:01:03.6]} 18...
Nc4 {[%clk 0:01:50.4]} 19. Rad1 {[%clk 0:00:54.2]} 19... Qe2 {[%clk 0:01:37.1]}
20. Neg5 {[%clk 0:00:22.5]} 20... Nxe3 {[%clk 0:01:31]} 21. fxe3 {[%clk
0:00:23.4]} 21... Rad8 {[%clk 0:01:02]} 22. Rxd8 {[%clk 0:00:22.7]} 22... Rxd8
{[%clk 0:01:02.9]} 23. fxg6 {[%clk 0:00:22.3]} 23... fxg6 {[%clk 0:00:40.1]} 24.
Qe4 {[%clk 0:00:20.5]} 24... Rd6 {[%clk 0:00:33.8]} 25. Rf2 {[%clk 0:00:18.6]}
25... Qb5 {[%clk 0:00:28.1]} 26. Kg2 {[%clk 0:00:17.5]} 26... Rf6 {[%clk
0:00:25.5]} 27. h4 {[%clk 0:00:16.3]} 27... Qf5 {[%clk 0:00:21.9]} 28. Qxf5
{[%clk 0:00:15.7]} 28... Rxf5 {[%clk 0:00:22.8]} 29. Nd4 {[%clk 0:00:15.3]}
29... Rxf2+ {[%clk 0:00:21.4]} 30. Kxf2 {[%clk 0:00:16.2]} 30... Ne5 {[%clk
0:00:22.3]} 31. Ke2 {[%clk 0:00:15.4]} 31... Bf6 {[%clk 0:00:20.5]} 32. Ngf3
{[%clk 0:00:15.3]} 32... Nc4 {[%clk 0:00:19.2]} 33. b3 {[%clk 0:00:15.1]} 33...
Nd6 {[%clk 0:00:19.7]} 34. c4 {[%clk 0:00:15.4]} 34... e5 {[%clk 0:00:19.4]} 35.
Ne6 {[%clk 0:00:14.1]} 35... e4 {[%clk 0:00:17.9]} 36. Nfg5 {[%clk 0:00:14.4]}
36... Nf5 {[%clk 0:00:15.8]} 37. c5 {[%clk 0:00:11.9]} 37... Nxh4 {[%clk
0:00:05.5]} 38. Nxe4 {[%clk 0:00:11.5]} 38... Be7 {[%clk 0:00:06.2]} 39. b4
{[%clk 0:00:11.6]} 39... Nf5 {[%clk 0:00:06.1]} 40. b5 {[%clk 0:00:11.8]} 40...
Kf7 {[%clk 0:00:05.3]} 41. Nf4 {[%clk 0:00:11.3]} 41... h4 {[%clk 0:00:04.2]}
42. c6 {[%clk 0:00:10.7]} 42... bxc6 {[%clk 0:00:05.1]} 43. bxc6 {[%clk
0:00:11.2]} 43... Nd6 {[%clk 0:00:04.9]} 44. c7 {[%clk 0:00:09.5]} 44... Nc8
{[%clk 0:00:04.4]} 45. a4 {[%clk 0:00:09.4]} 45... g5 {[%clk 0:00:04.5]} 46. Nd5
{[%clk 0:00:08.9]} 46... g4 {[%clk 0:00:02.6]} 47. Kf2 {[%clk 0:00:08.4]} 47...
Ke6 {[%clk 0:00:01.5]} 48. Nxe7 {[%clk 0:00:07.3]} 48... Kxe7 {[%clk 0:00:02.4]}
49. Kg2 {[%clk 0:00:07.2]} 49... Kd7 {[%clk 0:00:02.8]} 50. Nf6+ {[%clk
0:00:07.5]} 50... Kxc7 {[%clk 0:00:03.3]} 51. Nxg4 {[%clk 0:00:08]} 51... Kb6
{[%clk 0:00:04]} 52. Ne5 {[%clk 0:00:07.5]} 52... Ka5 {[%clk 0:00:04.9]} 53.
Nc6+ {[%clk 0:00:08]} 53... Kxa4 {[%clk 0:00:05.2]} 54. Nxa7 {[%clk 0:00:08.7]}
54... Nxa7 {[%clk 0:00:06.1]} 55. Kh3 {[%clk 0:00:09.5]} 55... Kb5 {[%clk
0:00:06.7]} 56. Kxh4 {[%clk 0:00:10.2]} 56... Kc5 {[%clk 0:00:07.6]} 57. e4
{[%clk 0:00:09.9]} 57... Nc6 {[%clk 0:00:08.5]} 58. e5 {[%clk 0:00:10.2]} 58...
Nxe5 {[%clk 0:00:08.7]} 1/2-1/2

[Event "*** Titled Tuesday Blitz"]
[Site "Chess.com"]
[Date "2020.04.28"]
[Round "7"]
[White "agrigo3"]
[Black "DACF2905"]
[Result "1-0"]
[WhiteElo "2298"]
[BlackElo "2178"]
[TimeControl "180+1"]
[EndTime "11:19:18 PDT"]
[Termination "agrigo3 won by resignation"]

1. Nf3 {[%clk 0:03:00.9]} 1... Nf6 {[%clk 0:02:59.3]} 2. g3 {[%clk 0:03:01]}
2... d5 {[%clk 0:02:57.9]} 3. Bg2 {[%clk 0:03:01.5]} 3... e6 {[%clk 0:02:56.3]}
4. O-O {[%clk 0:03:01.9]} 4... Bd6 {[%clk 0:02:55.8]} 5. d4 {[%clk 0:03:00.4]}
5... O-O {[%clk 0:02:52.9]} 6. c4 {[%clk 0:03:00.9]} 6... c6 {[%clk 0:02:49]} 7.
Nbd2 {[%clk 0:02:59.2]} 7... Re8 {[%clk 0:02:46.2]} 8. b3 {[%clk 0:02:58.6]}
8... Nbd7 {[%clk 0:02:44.5]} 9. Bb2 {[%clk 0:02:59.1]} 9... Qe7 {[%clk
0:02:37.3]} 10. Ne5 {[%clk 0:02:57]} 10... Ba3 {[%clk 0:02:34.4]} 11. Bxa3
{[%clk 0:02:53.5]} 11... Qxa3 {[%clk 0:02:33.6]} 12. e4 {[%clk 0:02:21.1]} 12...
dxe4 {[%clk 0:02:27.2]} 13. Nxe4 {[%clk 0:02:20.1]} 13... Nxe4 {[%clk
0:02:26.5]} 14. Bxe4 {[%clk 0:02:19.8]} 14... Nf6 {[%clk 0:02:25.4]} 15. Bg2
{[%clk 0:02:12.5]} 15... c5 {[%clk 0:02:23.9]} 16. dxc5 {[%clk 0:01:53.3]} 16...
Qxc5 {[%clk 0:02:21.8]} 17. Qe2 {[%clk 0:01:53.9]} 17... a5 {[%clk 0:02:15.1]}
18. Rab1 {[%clk 0:01:35.7]} 18... Ra6 {[%clk 0:02:12]} 19. Rfd1 {[%clk
0:01:35.1]} 19... Rd6 {[%clk 0:02:09.9]} 20. Rxd6 {[%clk 0:01:33.9]} 20... Qxd6
{[%clk 0:02:09.9]} 21. Rd1 {[%clk 0:01:34.5]} 21... Qb6 {[%clk 0:02:04.2]} 22.
Qe3 {[%clk 0:01:16.7]} 22... Qxe3 {[%clk 0:01:55.4]} 23. fxe3 {[%clk 0:01:16.8]}
23... Kf8 {[%clk 0:01:55.8]} 24. Kf2 {[%clk 0:01:15]} 24... Ke7 {[%clk
0:01:55.7]} 25. h3 {[%clk 0:01:13.1]} 25... Rd8 {[%clk 0:01:55.7]} 26. Rxd8
{[%clk 0:01:10.6]} 26... Kxd8 {[%clk 0:01:55.8]} 27. Nxf7+ {[%clk 0:01:11.2]}
27... Ke7 {[%clk 0:01:53]} 28. Ne5 {[%clk 0:01:10.5]} 28... Kd6 {[%clk
0:01:47.6]} 29. Nd3 {[%clk 0:01:10.4]} 29... b6 {[%clk 0:01:46.6]} 30. g4 {[%clk
0:01:05.7]} 30... h6 {[%clk 0:01:45.3]} 31. Ke2 {[%clk 0:00:55.5]} 31... g5
{[%clk 0:01:35.4]} 32. a3 {[%clk 0:00:51.5]} 32... Ba6 {[%clk 0:01:32.7]} 33.
Nb2 {[%clk 0:00:48.1]} 33... b5 {[%clk 0:01:13.3]} 34. Kd3 {[%clk 0:00:47.1]}
34... Kc5 {[%clk 0:01:01]} 35. Kc3 {[%clk 0:00:45.5]} 35... b4+ {[%clk
0:00:52.4]} 36. axb4+ {[%clk 0:00:44.5]} 36... axb4+ {[%clk 0:00:53.3]} 37. Kd3
{[%clk 0:00:44.8]} 37... Nd7 {[%clk 0:00:46.7]} 38. Na4+ {[%clk 0:00:38.7]}
38... Kd6 {[%clk 0:00:46]} 39. Kd4 {[%clk 0:00:38.2]} 39... e5+ {[%clk
0:00:41.9]} 40. Kd3 {[%clk 0:00:38.3]} 40... Nf6 {[%clk 0:00:26.9]} 41. Be4
{[%clk 0:00:24.2]} 41... Nxe4 {[%clk 0:00:20.6]} 42. Kxe4 {[%clk 0:00:24.4]}
42... Bb7+ {[%clk 0:00:20.9]} 43. Kf5 {[%clk 0:00:24.7]} 43... Bg2 {[%clk
0:00:21]} 44. Nb2 {[%clk 0:00:22.4]} 44... Bxh3 {[%clk 0:00:20.9]} 45. Nd3
{[%clk 0:00:22.6]} 45... h5 {[%clk 0:00:20.2]} 46. Kxg5 {[%clk 0:00:22.3]} 46...
hxg4 {[%clk 0:00:20.2]} 47. Nxe5 {[%clk 0:00:20.8]} 47... g3 {[%clk 0:00:20.2]}
48. Nf3 {[%clk 0:00:20.8]} 48... Bf1 {[%clk 0:00:19.1]} 49. Kf4 {[%clk
0:00:20.2]} 49... g2 {[%clk 0:00:19]} 50. Kg3 {[%clk 0:00:18.1]} 50... Kc5
{[%clk 0:00:17.6]} 51. Kf2 {[%clk 0:00:17]} 51... Bd3 {[%clk 0:00:17.1]} 52.
Kxg2 {[%clk 0:00:16.4]} 52... Bc2 {[%clk 0:00:16]} 53. Nd4 {[%clk 0:00:16.5]}
53... Bxb3 {[%clk 0:00:13.4]} 54. Nxb3+ {[%clk 0:00:16.6]} 54... Kxc4 {[%clk
0:00:14.3]} 55. Na5+ {[%clk 0:00:15.9]} 55... Kd3 {[%clk 0:00:13.9]} 56. Kf3
{[%clk 0:00:15.3]} 56... Kc3 {[%clk 0:00:13.7]} 57. Ke2 {[%clk 0:00:15.4]} 57...
b3 {[%clk 0:00:14]} 58. Nxb3 {[%clk 0:00:14.1]} 58... Kxb3 {[%clk 0:00:14.9]}
59. Kd3 {[%clk 0:00:14.5]} 59... Kb4 {[%clk 0:00:15.1]} 60. Kd4 {[%clk
0:00:15.1]} 60... Kb5 {[%clk 0:00:15.4]} 61. Kd5 {[%clk 0:00:15.7]} 61... Kb6
{[%clk 0:00:15.5]} 62. Kd6 {[%clk 0:00:16.2]} 62... Kb7 {[%clk 0:00:13.9]} 63.
Kd7 {[%clk 0:00:16.5]} 63... Kb6 {[%clk 0:00:14.4]} 64. e4 {[%clk 0:00:16.8]}
64... Kc5 {[%clk 0:00:15.2]} 65. e5 {[%clk 0:00:17.1]} 65... Kd5 {[%clk
0:00:16.1]} 66. e6 {[%clk 0:00:17.7]} 1-0

[Event "*** Titled Tuesday Blitz"]
[Site "Chess.com"]
[Date "2020.04.28"]
[Round "7"]
[White "Playgood28"]
[Black "kinga2008"]
[Result "1/2-1/2"]
[WhiteElo "2219"]
[BlackElo "2104"]
[TimeControl "180+1"]
[EndTime "11:19:18 PDT"]
[Termination "Game drawn by repetition"]

1. d4 {[%clk 0:03:00.9]} 1... g6 {[%clk 0:03:00.1]} 2. c4 {[%clk 0:03:00.3]}
2... Bg7 {[%clk 0:02:58.6]} 3. Nc3 {[%clk 0:03:00.2]} 3... Nf6 {[%clk
0:02:56.8]} 4. Nf3 {[%clk 0:02:58.8]} 4... d6 {[%clk 0:02:53.6]} 5. h3 {[%clk
0:02:57.7]} 5... O-O {[%clk 0:02:50.3]} 6. Bf4 {[%clk 0:02:57.9]} 6... Nbd7
{[%clk 0:02:47.8]} 7. e3 {[%clk 0:02:57.5]} 7... c5 {[%clk 0:02:44.8]} 8. Be2
{[%clk 0:02:54.8]} 8... Qa5 {[%clk 0:02:42.3]} 9. O-O {[%clk 0:02:49.2]} 9... a6
{[%clk 0:02:30.7]} 10. a3 {[%clk 0:02:46.9]} 10... Qb6 {[%clk 0:02:17.9]} 11.
Qd2 {[%clk 0:02:39.4]} 11... cxd4 {[%clk 0:02:06.1]} 12. exd4 {[%clk 0:02:37.6]}
12... Qc7 {[%clk 0:01:48.8]} 13. c5 {[%clk 0:02:28.7]} 13... Rd8 {[%clk
0:01:45.8]} 14. Rac1 {[%clk 0:02:27.1]} 14... e5 {[%clk 0:01:26.8]} 15. cxd6
{[%clk 0:01:51.3]} 15... Qxd6 {[%clk 0:01:23.2]} 16. dxe5 {[%clk 0:01:44.4]}
16... Qxd2 {[%clk 0:01:19.4]} 17. Nxd2 {[%clk 0:01:34.4]} 17... Nxe5 {[%clk
0:01:10.9]} 18. Nc4 {[%clk 0:01:32]} 18... Nxc4 {[%clk 0:01:08]} 19. Bxc4 {[%clk
0:01:31.1]} 19... Bf5 {[%clk 0:01:06]} 20. Rfd1 {[%clk 0:01:27]} 20... b5 {[%clk
0:01:00.7]} 21. Be2 {[%clk 0:01:20.7]} 21... Ne4 {[%clk 0:00:50.7]} 22. Nxe4
{[%clk 0:01:15.5]} 22... Bxe4 {[%clk 0:00:48.8]} 23. b3 {[%clk 0:00:23.7]} 23...
Bb2 {[%clk 0:00:43.4]} 24. Rxd8+ {[%clk 0:00:23.2]} 24... Rxd8 {[%clk
0:00:41.8]} 25. Re1 {[%clk 0:00:23.6]} 25... Bc3 {[%clk 0:00:35.3]} 26. Rd1
{[%clk 0:00:20.2]} 26... Rc8 {[%clk 0:00:24.9]} 27. a4 {[%clk 0:00:19.6]} 27...
Bc2 {[%clk 0:00:21.9]} 28. Rd6 {[%clk 0:00:19.1]} 28... Bxb3 {[%clk 0:00:20.3]}
29. axb5 {[%clk 0:00:18.7]} 29... axb5 {[%clk 0:00:17.9]} 30. Bxb5 {[%clk
0:00:18]} 30... Bb4 {[%clk 0:00:18]} 31. Rd7 {[%clk 0:00:12.5]} 31... Be6 {[%clk
0:00:17.9]} 32. Rb7 {[%clk 0:00:11.8]} 32... Bc5 {[%clk 0:00:14.4]} 33. Bd7
{[%clk 0:00:09]} 33... Bxd7 {[%clk 0:00:10.5]} 34. Rxd7 {[%clk 0:00:08.7]} 34...
Re8 {[%clk 0:00:09.2]} 35. g4 {[%clk 0:00:08]} 35... Re1+ {[%clk 0:00:09.4]} 36.
Kg2 {[%clk 0:00:06.7]} 36... Re2 {[%clk 0:00:10.3]} 37. Bg3 {[%clk 0:00:06.8]}
37... Bb6 {[%clk 0:00:05.2]} 38. Rd5 {[%clk 0:00:06.7]} 38... Kg7 {[%clk
0:00:03.8]} 39. Rd6 {[%clk 0:00:06.5]} 39... Bc7 {[%clk 0:00:03.7]} 40. Rc6
{[%clk 0:00:06.8]} 40... Bxg3 {[%clk 0:00:04.1]} 41. Kxg3 {[%clk 0:00:06.5]}
41... h5 {[%clk 0:00:04.1]} 42. gxh5 {[%clk 0:00:05.7]} 42... gxh5 {[%clk
0:00:05]} 43. Rc5 {[%clk 0:00:05.8]} 43... Kg6 {[%clk 0:00:04.7]} 44. Rc6+
{[%clk 0:00:05.5]} 44... Re6 {[%clk 0:00:05.2]} 45. Rxe6+ {[%clk 0:00:04.5]}
45... fxe6 {[%clk 0:00:06.1]} 46. Kf4 {[%clk 0:00:04.1]} 46... Kf6 {[%clk
0:00:06]} 47. h4 {[%clk 0:00:03.8]} 47... e5+ {[%clk 0:00:03.9]} 48. Ke4 {[%clk
0:00:03.1]} 48... Ke6 {[%clk 0:00:04.5]} 49. f4 {[%clk 0:00:02.9]} 49... exf4
{[%clk 0:00:04.3]} 50. Kxf4 {[%clk 0:00:03.3]} 50... Kf6 {[%clk 0:00:03.9]} 51.
Ke4 {[%clk 0:00:02.4]} 51... Ke6 {[%clk 0:00:03.8]} 52. Kf4 {[%clk 0:00:03.3]}
52... Kf6 {[%clk 0:00:03.9]} 53. Ke4 {[%clk 0:00:03.7]} 53... Ke6 {[%clk
0:00:04.4]} 54. Kf4 {[%clk 0:00:04]} 1/2-1/2